bitfinex-derivatives/quotes_SOLF0:USTF0_20250905
["timestamp","ask_amount","ask_price","bid_price","bid_amount"]
[1757067852383,0.03689121,206.37,206.33,12.01333015]
[1757067852583,0.03689121,206.37,206.35,7.63]
[1757067852886,0.03689121,206.37,206.32,7.63]
[1757067853088,0.03689121,206.37,206.33,4.38270282]
[1757067853289,0.03689121,206.37,206.34,4.38270282]
[1757067853483,0.03689121,206.37,206.32,7.63]
[1757067853689,0.03689121,206.37,206.34,7.63]
[1757067853889,0.03689121,206.37,206.36,7.63]
[1757067854090,0.03689121,206.37,206.36,12.01237318]
[1757067857387,0.03689121,206.37,206.36,7.63]
[1757067858589,0.03689121,206.37,206.31,5.37189772]
[1757067858887,0.03689121,206.37,206.33,8.05]
[1757067859088,0.03689121,206.37,206.34,12.43507402]
[1757067859293,7.57689121,206.37,206.35,4.38507402]
[1757067859486,7.57689121,206.37,206.34,8.05]
[1757067859686,7.57689121,206.37,206.35,4.38638184]
[1757067859888,7.57689121,206.37,206.34,8.05]
[1757067860088,7.57689121,206.37,206.35,4.38638184]
[1757067860291,7.57689121,206.37,206.34,8.05]
[1757067860492,0.03689121,206.37,206.35,12.43667121]
[1757067860693,0.03689121,206.37,206.32,8.05]
[1757067860894,0.03689121,206.37,206.33,4.38693612]
[1757067861094,0.03689121,206.37,206.35,8.05]
[1757067861295,0.03689121,206.37,206.32,8.05]
[1757067861494,0.03689121,206.37,206.33,4.38644418]
[1757067861693,0.03689121,206.37,206.34,4.38644418]
[1757067861895,0.03689121,206.37,206.36,8.05]
[1757067863897,0.03689121,206.37,206.36,12.43702214]
[1757067866600,0.03689121,206.37,206.36,12.43712153]
[1757067866900,0.03689121,206.37,206.36,4.38712153]
[1757067867104,0.03689121,206.37,206.36,12.43712153]
[1757067880813,0.03689121,206.37,206.36,12.44176137]
[1757067887922,7.57689121,206.37,206.36,4.39176137]
[1757067890230,1.36038029,206.37,206.34,4.04840864]
[1757067890525,8.86348908,206.35,206.34,4.04840864]
[1757067890729,8.86348908,206.35,206.31,5.47988134]
[1757067891032,8.86348908,206.32,206.31,5.47988134]
[1757067891224,8.86348908,206.32,206.28,8.17154327]
[1757067891428,8.86348908,206.29,206.28,8.17154327]
[1757067892432,8.86348908,206.29,206.28,4.04323584]
[1757067893227,9.34348908,206.29,206.28,8.38120386]
[1757067893528,9.34348908,206.29,206.23,8.17154327]
[1757067893730,8.86348908,206.26,206.23,8.17154327]
[1757067893928,8.86348908,206.26,206.23,16.14154327]
[1757067896234,1.32348908,206.26,206.23,8.17154327]
[1757067896434,0.03334759,206.27,206.23,8.17154327]
[1757067896630,0.03334759,206.27,206.24,7.97]
[1757067897635,7.57334759,206.27,206.24,7.97]
[1757067898636,0.03334759,206.27,206.2,7.97]
[1757067899037,1.35683667,206.27,206.2,7.97]
[1757067903440,0.03334759,206.27,206.2,7.97]
[1757067906136,0.03334759,206.27,206.2,12.3342]
[1757067906332,0.03334759,206.27,206.21,7.97]
[1757067908842,0.03334759,206.27,206.23,4.3636]
[1757067909044,0.03334759,206.27,206.24,7.97]
[1757067910237,0.03334759,206.27,206.23,4.3636]
[1757067910443,0.03334759,206.27,206.24,7.97]
[1757067911243,0.03334759,206.27,206.24,12.3334]
[1757067911442,0.03334759,206.27,206.24,4.3634]
[1757067911641,0.03334759,206.27,206.25,7.97]
[1757067911847,0.03334759,206.27,206.24,4.3634]
[1757067912148,0.03334759,206.27,206.25,12.3331]
[1757067912346,0.03334759,206.27,206.26,7.97]
[1757067921844,8.1,206.37,206.26,7.97]
[1757067922049,8.1,206.37,206.27,7.54]
[1757067922245,371.70126378,206.4,206.28,7.54]
[1757067923155,371.70126378,206.4,206.32,0.03726046]
[1757067923454,371.70126378,206.4,206.32,7.57726046]
[1757067923857,371.70126378,206.4,206.33,7.54]
[1757067924158,59.56126378,206.4,206.33,7.54]
[1757067924659,59.56126378,206.4,206.33,11.9014]
[1757067927259,59.56126378,206.4,206.33,7.54]
[1757067929959,59.56126378,206.4,206.32,0.03726046]
[1757067930259,59.56126378,206.4,206.32,7.57726046]
[1757067931860,59.56126378,206.4,206.32,11.93896046]
[1757067933263,2.07002532,206.39,206.32,11.93896046]
[1757067934159,8.1,206.38,206.32,11.93896046]
[1757067936962,2.07002532,206.39,206.33,7.54]
[1757067937265,8.1,206.38,206.33,7.54]
[1757067937464,2.07002532,206.39,206.33,7.54]
[1757067937763,8.1,206.38,206.33,7.54]
[1757067938062,8.1,206.38,206.32,11.93896046]
[1757067939763,8.1,206.38,206.33,4.3614]
[1757067941269,10.17002532,206.39,206.33,4.3614]
[1757067941463,10.17002532,206.39,206.33,11.9014]
[1757067944269,10.17002532,206.39,206.34,4.3613]
[1757067946070,2.07002532,206.39,206.34,4.3613]
[1757067946264,8.1,206.38,206.35,7.54]
[1757067947470,8.1,206.38,206.32,7.57726046]
[1757067947666,8.1,206.38,206.33,11.9015]
[1757067947865,8.1,206.38,206.32,0.03726046]
[1757067949868,7.47,206.35,206.32,0.03726046]
[1757067952873,2.07002532,206.36,206.32,0.03726046]
[1757067953171,7.47,206.35,206.32,0.03726046]
[1757067953774,2.07002532,206.36,206.32,0.03726046]
[1757067954273,7.47,206.35,206.32,0.03726046]
[1757067954470,2.07002532,206.36,206.32,0.03726046]
[1757067955072,7.47,206.35,206.32,0.03726046]
[1757067955272,2.07002532,206.36,206.32,0.03726046]
[1757067955474,2.07002532,206.33,206.32,0.03726046]
[1757067955674,9.54002532,206.33,206.32,0.03726046]
[1757067958281,9.54002532,206.33,206.25,4.03119088]
[1757067960288,9.54002532,206.3,206.26,8.0]
[1757067960489,2.07002532,206.3,206.25,4.03119088]
[1757067960690,7.47,206.29,206.26,8.0]
[1757067960885,2.10061596,206.3,206.26,8.0]
[1757067961280,7.47,206.29,206.26,8.0]
[1757067962088,2.10061596,206.3,206.26,8.0]
[1757067962291,7.47,206.29,206.26,8.0]
[1757067962689,2.10061596,206.3,206.26,8.0]
[1757067962890,2.10061596,206.3,206.22,4.3638]
[1757067963090,7.47,206.29,206.23,8.0]
[1757067963491,8.79449756,206.27,206.23,8.0]
[1757067963889,8.79449756,206.27,206.22,4.3638]
[1757067964184,8.79449756,206.27,206.23,4.3636]
[1757067964588,1.32449756,206.27,206.24,8.0]
[1757067964886,1.32449756,206.27,206.23,4.3636]
[1757067965388,8.79449756,206.27,206.24,8.0]
[1757067965691,8.79449756,206.27,206.22,4.3638]
[1757067965889,1.32449756,206.27,206.23,8.0]
[1757067966185,1.32449756,206.28,206.23,8.0]
[1757067966391,1.32449756,206.29,206.24,8.0]
[1757067967188,1.32449756,206.29,206.21,80.37573774]
[1757067967393,1.32449756,206.29,206.22,8.0]
[1757067967991,1.32449756,206.29,206.24,4.3633]
[1757067968495,1.32449756,206.29,206.25,8.0]
[1757067968894,1.32449756,206.29,206.24,4.3633]
[1757067969093,8.79449756,206.29,206.24,4.3633]
[1757067969494,8.79449756,206.29,206.25,8.0]
[1757067969690,1.32449756,206.29,206.25,8.0]
[1757067969990,8.79449756,206.27,206.25,8.0]
[1757067970796,7.47,206.27,206.25,8.0]
[1757067970992,1.32449756,206.27,206.25,8.0]
[1757067971396,1.32449756,206.27,206.22,4.3638]
[1757067971790,1.32449756,206.27,206.23,8.0]
[1757067972093,1.32449756,206.27,206.22,4.3638]
[1757067972293,1.32449756,206.27,206.23,8.0]
[1757067972690,1.32449756,206.27,206.22,4.3638]
[1757067973195,1.32449756,206.27,206.23,8.0]
[1757067973588,1.32449756,206.29,206.23,8.0]
[1757067975395,1.32449756,206.29,206.23,12.3635]
[1757067978398,1.32449756,206.29,206.23,8.0]
[1757067979497,1.32449756,206.29,206.24,7.62]
[1757067979996,1.32449756,206.29,206.23,4.3635]
[1757067980198,1.32449756,206.29,206.24,7.62]
[1757067980697,1.32449756,206.29,206.23,4.3635]
[1757067981187,1.32449756,206.29,206.24,7.62]
[1757067981689,9.09449756,206.29,206.23,7.62]
[1757067983697,1.32449756,206.29,206.24,7.62]
[1757067983898,1.32449756,206.29,206.23,4.3636]
[1757067984401,1.32449756,206.29,206.24,7.62]
[1757067984898,1.32449756,206.29,206.23,4.3636]
[1757067985302,1.32449756,206.29,206.24,7.62]
[1757067985496,1.32449756,206.29,206.23,4.3636]
[1757067985692,1.32449756,206.29,206.24,7.62]
[1757067986297,1.32449756,206.29,206.23,4.3636]
[1757067986900,1.32449756,206.29,206.24,7.62]
[1757067987301,1.32449756,206.29,206.24,4.3634]
[1757067987504,9.09449756,206.29,206.24,4.3634]
[1757067987801,9.09449756,206.29,206.25,7.62]
[1757067988002,9.09449756,206.29,206.24,4.3634]
[1757067988398,9.09449756,206.29,206.25,7.62]
[1757067989100,9.09449756,206.29,206.24,4.3634]
[1757067989301,1.32449756,206.29,206.25,7.62]
[1757067989496,7.77,206.28,206.25,7.62]
[1757067991399,1.32449756,206.29,206.25,7.62]
[1757067991704,9.09449756,206.27,206.22,8.39499088]
[1757067991894,9.09449756,206.27,206.23,7.62]
[1757067992099,1.32449756,206.27,206.23,7.62]
[1757067992301,7.77,206.26,206.23,7.62]
[1757067992703,7.77,206.26,206.22,4.03119088]
[1757067993004,7.77,206.24,206.22,4.03119088]
[1757067994602,7.77,206.24,206.21,84.40692862]
[1757067994803,7.77,206.24,206.22,7.62]
[1757067995004,9.13121064,206.25,206.22,7.62]
[1757067998400,1.36121064,206.25,206.21,4.03119088]
[1757067998905,7.77,206.24,206.21,4.03119088]
[1757067999405,1.36121064,206.25,206.21,4.03119088]
[1757067999905,7.77,206.24,206.21,11.65119088]
[1757068000106,7.77,206.24,206.22,7.62]
[1757068003603,0.03671308,206.25,206.2,7.62]
[1757068004208,0.03671308,206.25,206.2,8.94449756]
[1757068004910,0.03671308,206.25,206.22,4.3638]
[1757068006009,0.03671308,206.25,206.23,7.62]
[1757068008812,7.74671308,206.25,206.23,7.62]
[1757068010415,0.03671308,206.25,206.23,8.13]
[1757068011715,0.03671308,206.25,206.22,4.03119088]
[1757068011911,0.03671308,206.25,206.23,8.13]
[1757068012714,0.03671308,206.25,206.22,4.03119088]
[1757068012919,0.03671308,206.25,206.21,8.39519088]
[1757068013108,0.03671308,206.25,206.22,8.13]
[1757068013315,0.03671308,206.25,206.21,8.39519088]
[1757068013613,0.03671308,206.25,206.22,8.13]
[1757068013818,0.03671308,206.25,206.21,4.03119088]
[1757068014417,0.03671308,206.25,206.22,8.13]
[1757068014617,0.03671308,206.25,206.21,4.03119088]
[1757068017016,0.03671308,206.25,206.22,8.13]
[1757068017417,0.03671308,206.25,206.21,4.03119088]
[1757068017819,7.71,206.24,206.21,12.16119088]
[1757068018019,1.36121064,206.25,206.22,8.13]
[1757068018224,9.07121064,206.25,206.22,8.13]
[1757068018519,9.07121064,206.25,206.2,4.03119088]
[1757068019014,7.74671308,206.25,206.2,4.03119088]
[1757068019216,7.74671308,206.25,206.21,8.13]
[1757068019721,7.74671308,206.25,206.2,4.03119088]
[1757068020122,7.74671308,206.25,206.21,8.13]
[1757068020322,7.74671308,206.25,206.2,4.03119088]
[1757068020522,7.71,206.24,206.21,8.13]
[1757068020724,7.74671308,206.25,206.2,4.03119088]
[1757068020919,7.71,206.24,206.21,8.13]
[1757068021218,7.71,206.23,206.2,4.03119088]
[1757068021424,1.32449756,206.24,206.21,8.13]
[1757068021623,9.03449756,206.24,206.21,8.13]
[1757068023426,1.32449756,206.24,206.18,4.03119088]
[1757068023626,9.03449756,206.24,206.18,12.16119088]
[1757068025126,9.03449756,206.24,206.19,8.13]
[1757068025623,0.03671308,206.25,206.19,8.13]
[1757068026925,0.03671308,206.25,206.19,4.3644]
[1757068027824,0.03671308,206.25,206.2,8.13]
[1757068028327,0.03671308,206.25,206.2,4.3642]
[1757068028725,0.03671308,206.25,206.21,8.13]
[1757068028927,0.03671308,206.25,206.2,4.3642]
[1757068029528,0.03671308,206.25,206.21,8.13]
[1757068029723,0.03671308,206.25,206.2,4.3642]
[1757068030625,0.03671308,206.25,206.21,8.13]
[1757068031127,0.03671308,206.25,206.2,4.3642]
[1757068031325,0.03671308,206.25,206.21,8.13]
[1757068031530,0.03671308,206.25,206.2,4.3642]
[1757068032433,7.74671308,206.25,206.21,8.13]
[1757068032926,0.03671308,206.25,206.21,8.13]
[1757068033230,0.03671308,206.25,206.2,4.3642]
[1757068033632,0.03671308,206.25,206.21,8.13]
[1757068033833,7.74671308,206.25,206.21,8.13]
[1757068034035,7.74671308,206.25,206.19,4.03119088]
[1757068034533,7.74671308,206.25,206.2,8.13]
[1757068034934,7.74671308,206.25,206.19,12.16119088]
[1757068035435,0.03671308,206.25,206.19,4.03119088]
[1757068035636,7.74671308,206.25,206.19,12.16119088]
[1757068038831,0.03671308,206.25,206.19,12.16119088]
[1757068039138,8.17671308,206.25,206.19,11.50119088]
[1757068041438,8.17671308,206.25,206.19,7.47]
[1757068042635,10.24667531,206.25,206.17,4.03119088]
[1757068043239,2.06996223,206.22,206.17,4.03119088]
[1757068043435,8.14,206.21,206.17,4.03119088]
[1757068043836,8.14,206.21,206.17,11.50119088]
[1757068044738,2.06996223,206.22,206.17,11.50119088]
[1757068045740,2.06996223,206.22,206.17,4.03119088]
[1757068045942,8.14,206.21,206.17,4.03119088]
[1757068046343,2.06996223,206.22,206.17,4.03119088]
[1757068046541,8.14,206.21,206.17,4.03119088]
[1757068046939,8.14,206.21,206.14,7.47]
[1757068047546,0.03609536,206.2,206.14,7.47]
[1757068050946,0.03609536,206.2,206.15,4.3652]
[1757068051643,0.03609536,206.2,206.16,7.47]
[1757068052541,0.03609536,206.2,206.15,4.3652]
[1757068053045,0.03609536,206.2,206.16,7.47]
[1757068053248,0.03609536,206.2,206.15,4.3652]
[1757068053838,0.03609536,206.2,206.16,7.47]
[1757068054141,0.03609536,206.2,206.15,4.3652]
[1757068054342,0.03609536,206.2,206.16,7.47]
[1757068054537,0.03609536,206.2,206.15,4.3652]
[1757068054946,0.03609536,206.2,206.16,7.47]
[1757068055648,0.03609536,206.2,206.15,4.3652]
[1757068056841,0.03609536,206.2,206.16,7.47]
[1757068057037,0.03609536,206.2,206.15,4.3652]
[1757068057248,0.03609536,206.2,206.16,7.47]
[1757068057444,0.03609536,206.2,206.15,4.3652]
[1757068058043,0.03609536,206.2,206.16,7.47]
[1757068058350,0.03609536,206.2,206.15,4.3652]
[1757068058551,0.03609536,206.2,206.16,7.47]
[1757068059053,0.03609536,206.2,206.15,4.3652]
[1757068059644,0.03609536,206.2,206.16,7.47]
[1757068060053,0.03609536,206.2,206.15,4.3652]
[1757068060452,0.03609536,206.2,206.16,7.47]
[1757068060648,0.03609536,206.2,206.15,4.3652]
[1757068061248,0.03609536,206.2,206.16,7.47]
[1757068061449,0.03609536,206.2,206.15,4.3652]
[1757068061747,0.03609536,206.2,206.16,7.47]
[1757068062150,0.03609536,206.2,206.15,4.3652]
[1757068062851,0.03609536,206.2,206.16,7.47]
[1757068063351,0.03609536,206.2,206.14,7.47]
[1757068063857,0.03609536,206.2,206.14,11.8355]
[1757068064051,0.03609536,206.2,206.14,8.39669088]
[1757068064551,0.03609536,206.2,206.15,7.47]
[1757068065557,0.03609536,206.2,206.16,7.47]
[1757068065958,0.03609536,206.2,206.15,4.3653]
[1757068066752,0.03609536,206.2,206.16,7.47]
[1757068067052,0.03609536,206.2,206.15,4.3653]
[1757068067252,0.03609536,206.2,206.16,7.47]
[1757068067650,0.03609536,206.2,206.15,4.3653]
[1757068068053,0.03609536,206.2,206.16,7.95]
[1757068069655,0.03609536,206.2,206.15,4.3653]
[1757068069954,0.03609536,206.2,206.16,7.95]
[1757068070147,0.03609536,206.2,206.15,4.3653]
[1757068070545,0.03609536,206.2,206.16,7.95]
[1757068071859,0.03609536,206.2,206.16,12.315]
[1757068072059,0.03609536,206.2,206.16,4.365]
[1757068073656,0.03609536,206.2,206.17,7.95]
[1757068074048,0.03609536,206.2,206.16,4.365]
[1757068074250,0.03609536,206.2,206.17,7.95]
[1757068074454,0.03609536,206.2,206.16,4.365]
[1757068074650,0.03609536,206.2,206.17,7.95]
[1757068076364,0.03609536,206.2,206.16,4.365]
[1757068076566,0.03609536,206.2,206.17,7.95]
[1757068077367,0.03609536,206.2,206.16,4.365]
[1757068078062,0.03609536,206.2,206.17,7.95]
[1757068078366,0.03609536,206.2,206.16,4.365]
[1757068079471,0.03609536,206.2,206.17,7.95]
[1757068080370,0.03609536,206.2,206.19,7.95]
[1757068097985,0.03609536,206.2,206.19,9.27478823]
[1757068099192,0.03609536,206.2,206.19,9.75478823]
[1757068105792,0.03609536,206.2,206.19,8.43]
[1757068106090,0.03609536,206.2,206.19,9.75478823]
[1757068115298,0.03609536,206.2,206.19,127.87478823]
[1757068116000,0.03609536,206.2,206.19,9.75478823]
[1757068116199,0.03609536,206.2,206.19,127.85478823]
[1757068116802,0.03609536,206.2,206.19,9.75478823]
[1757068117001,0.03609536,206.2,206.19,126.05]
[1757068118501,0.03609536,206.2,206.19,127.37478823]
[1757068120003,0.03609536,206.2,206.19,131.42594004]
[1757068121203,7.92,206.27,206.2,8.14]
[1757068121504,1.32478823,206.33,206.24,1.32478823]
[1757068121705,7.92,206.32,206.26,4.363]
[1757068121898,1.32478823,206.33,206.27,118.1]
[1757068122302,7.92,206.32,206.27,118.1]
[1757068122498,1.32478823,206.33,206.28,0.03215225]
[1757068122703,1.32478823,206.33,206.29,118.1]
[1757068123302,1.32478823,206.33,206.29,118.08]
[1757068123904,7.92,206.32,206.28,0.03215225]
[1757068125808,1.32478823,206.33,206.28,0.03215225]
[1757068126202,1.32478823,206.35,206.28,0.03215225]
[1757068126505,7.92,206.34,206.28,4.39465225]
[1757068127606,1.32478823,206.31,206.28,0.03215225]
[1757068127810,9.24478823,206.29,206.28,0.03215225]
[1757068128311,9.72478823,206.29,206.24,4.05115181]
[1757068128612,7.72,206.25,206.24,4.05115181]
[1757068131011,7.72,206.25,206.19,52.44]
[1757068133414,7.72,206.25,206.19,56.8044]
[1757068135314,7.72,206.25,206.2,4.3642]
[1757068135512,7.72,206.25,206.21,7.67]
[1757068135922,7.72,206.25,206.2,4.3642]
[1757068136220,0.03070309,206.27,206.23,7.67]
[1757068136610,0.03070309,206.27,206.22,1.32478823]
[1757068137114,0.03070309,206.27,206.24,7.67]
[1757068137520,7.75070309,206.27,206.24,7.67]
[1757068137820,7.75070309,206.27,206.22,1.32478823]
[1757068138617,7.75070309,206.27,206.23,7.67]
[1757068139323,7.75070309,206.27,206.22,1.32478823]
[1757068139826,7.75070309,206.27,206.23,7.67]
[1757068140027,7.75070309,206.27,206.22,1.32478823]
[1757068140226,0.03070309,206.27,206.23,7.67]
[1757068140426,0.03070309,206.27,206.22,1.32478823]
[1757068140725,0.03070309,206.27,206.23,7.67]
[1757068140915,0.03070309,206.27,206.22,1.32478823]
[1757068141117,0.03070309,206.27,206.23,7.67]
[1757068141316,7.75070309,206.27,206.23,7.67]
[1757068141622,7.72,206.26,206.21,68.10478823]
[1757068141819,7.72,206.26,206.22,7.67]
[1757068142825,7.72,206.26,206.21,72.15594004]
[1757068143026,0.03070309,206.27,206.21,72.15594004]
[1757068143229,0.03070309,206.27,206.22,7.67]
[1757068143420,0.03070309,206.27,206.24,7.67]
[1757068143622,0.03070309,206.27,206.26,7.67]
[1757068148129,0.03070309,206.27,206.26,9.73807333]
[1757068148933,7.72,206.39,206.3,7.67]
[1757068150123,7.72,206.39,206.3,125.71]
[1757068150323,7.72,206.39,206.32,0.03522597]
[1757068158438,7.72,206.39,206.32,7.78522597]
[1757068165035,7.72,206.39,206.32,0.03522597]
[1757068171942,8.09,206.37,206.32,0.03522597]
[1757068186556,8.09,206.34,206.32,0.03522597]
[1757068186756,8.09,206.34,206.25,7.75]
[1757068187960,0.03713442,206.32,206.25,7.75]
[1757068188159,7.6,206.31,206.24,4.05115181]
[1757068190358,7.6,206.31,206.22,8.06]
[1757068190560,7.6,206.31,206.2,4.05115181]
[1757068190761,7.6,206.28,206.2,4.05115181]
[1757068191257,7.6,206.25,206.2,4.05115181]
[1757068191660,0.0339201,206.26,206.2,4.05115181]
[1757068192355,7.6,206.25,206.2,4.05115181]
[1757068192552,0.0339201,206.26,206.2,4.05115181]
[1757068192759,7.6,206.25,206.2,4.05115181]
[1757068193162,0.0339201,206.26,206.2,4.05115181]
[1757068193457,7.6,206.25,206.2,4.05115181]
[1757068193961,0.0339201,206.26,206.2,4.05115181]
[1757068194158,7.6,206.25,206.2,4.05115181]
[1757068194361,7.6339201,206.26,206.2,4.05115181]
[1757068196459,7.6339201,206.26,206.19,8.06]
[1757068200662,9.70199343,206.26,206.19,8.06]
[1757068200866,9.70199343,206.26,206.15,8.06]
[1757068201870,7.6339201,206.26,206.15,8.06]
[1757068202069,9.70199343,206.26,206.15,8.06]
[1757068209480,1.32511084,206.23,206.15,8.06]
[1757068210083,0.03419487,206.21,206.15,8.06]
[1757068211985,0.03419487,206.21,206.18,1.32511084]
[1757068212179,1.32511084,206.28,206.2,8.06]
[1757068212478,1.32511084,206.27,206.2,8.06]
[1757068212684,1.32511084,206.25,206.18,8.06]
[1757068212884,1.32511084,206.27,206.18,8.06]
[1757068213086,1.32511084,206.27,206.2,8.06]
[1757068213384,1.32511084,206.27,206.2,8.0935495]
[1757068218993,7.6,206.28,206.2,8.0935495]
[1757068219486,7.48,206.36,206.24,7.69]
[1757068219683,1.32511084,206.31,206.24,7.69]
[1757068220083,1.32511084,206.31,206.25,0.03396023]
[1757068220887,7.48,206.3,206.25,0.03396023]
[1757068221291,24.32,206.35,206.25,0.03396023]
[1757068221292,7.48,206.28,206.25,7.72396023]
[1757068222791,7.48,206.28,206.25,0.03396023]
[1757068223085,1.32511084,206.29,206.25,7.72396023]
[1757068223291,7.48,206.26,206.25,0.03396023]
[1757068226390,1.32511084,206.29,206.26,7.69]
[1757068226590,7.48,206.28,206.25,0.03396023]
[1757068226786,7.48,206.28,206.22,7.69]
[1757068226986,1.32511084,206.29,206.24,0.03424004]
[1757068227188,7.48,206.28,206.24,0.03424004]
[1757068227389,7.48,206.32,206.24,0.03424004]
[1757068227591,1.32511084,206.28,206.24,0.03424004]
[1757068227887,7.48,206.27,206.24,0.03424004]
[1757068228188,1.32511084,206.28,206.24,0.03424004]
[1757068228582,7.48,206.27,206.24,7.72424004]
[1757068229196,1.32511084,206.29,206.24,0.03424004]
[1757068229492,7.48,206.28,206.25,7.69]
[1757068229994,1.32511084,206.29,206.25,7.69]
[1757068230196,7.48,206.32,206.24,0.03424004]
[1757068230396,7.48,206.27,206.24,7.72424004]
[1757068233792,1.32511084,206.28,206.24,0.03424004]
[1757068233997,7.48,206.25,206.24,0.03424004]
[1757068235094,1.32511084,206.27,206.24,0.03424004]
[1757068235298,8.80511084,206.27,206.24,7.72424004]
[1757068235592,1.32511084,206.27,206.24,0.03424004]
[1757068235798,7.48,206.26,206.24,0.03424004]
[1757068235998,1.32511084,206.27,206.24,0.03424004]
[1757068236394,7.48,206.26,206.24,0.03424004]
[1757068236794,1.32511084,206.27,206.24,0.03424004]
[1757068237190,7.48,206.26,206.24,0.03424004]
[1757068237393,1.32511084,206.27,206.24,0.03424004]
[1757068238200,8.80511084,206.25,206.24,0.03424004]
[1757068238498,7.48,206.25,206.24,0.03424004]
[1757068240100,8.80511084,206.27,206.24,0.03424004]
[1757068240500,8.80511084,206.27,206.24,7.72424004]
[1757068241401,7.48,206.26,206.24,7.72424004]
[1757068242900,1.32511084,206.28,206.25,7.69]
[1757068243099,8.80511084,206.28,206.25,7.69]
[1757068243295,1.32511084,206.28,206.25,7.69]
[1757068243502,7.48,206.27,206.25,7.69]
[1757068244298,1.32511084,206.3,206.24,7.72424004]
[1757068246002,8.80511084,206.28,206.24,7.72424004]
[1757068246199,1.32511084,206.28,206.24,7.72424004]
[1757068246394,1.32511084,206.28,206.24,0.03424004]
[1757068246902,7.48,206.27,206.24,0.03424004]
[1757068248105,1.32511084,206.28,206.25,7.42]
[1757068248306,1.32511084,206.28,206.24,0.03424004]
[1757068248502,1.32511084,206.28,206.25,7.42]
[1757068248697,1.32511084,206.28,206.24,0.03424004]
[1757068248902,1.32511084,206.28,206.25,7.42]
[1757068249906,9.43511084,206.28,206.25,7.42]
[1757068252508,8.11,206.28,206.25,7.42]
[1757068253909,8.11,206.28,206.24,0.03424004]
[1757068254105,8.11,206.26,206.24,0.03424004]
[1757068254706,9.43511084,206.25,206.24,0.03424004]
[1757068255607,1.32511084,206.25,206.2,4.05115181]
[1757068255807,8.11,206.22,206.2,4.05115181]
[1757068257016,1.32511084,206.23,206.2,4.05115181]
[1757068257702,8.11,206.22,206.2,4.05115181]
[1757068260414,1.32511084,206.23,206.2,4.05115181]
[1757068260818,1.32511084,206.21,206.2,4.05115181]
[1757068261009,8.11,206.2,206.16,7.42]
[1757068261209,8.11,206.2,206.15,4.05115181]
[1757068261405,8.14200668,206.2,206.16,7.42]
[1757068261605,8.14200668,206.2,206.15,4.05115181]
[1757068262114,8.14200668,206.2,206.16,7.42]
[1757068262313,0.03200668,206.2,206.15,4.05115181]
[1757068263611,0.03200668,206.2,206.16,7.42]
[1757068264317,0.03200668,206.2,206.16,13.11021084]
[1757068264615,0.03200668,206.2,206.17,7.42]
[1757068264818,0.03200668,206.2,206.16,5.69021084]
[1757068265009,0.03200668,206.2,206.17,7.42]
[1757068265218,0.03200668,206.2,206.16,5.69021084]
[1757068265513,0.03200668,206.2,206.17,7.42]
[1757068266013,0.03200668,206.2,206.16,5.69021084]
[1757068266014,0.03200668,206.2,206.16,9.74136265]
[1757068266323,0.03200668,206.2,206.17,7.42]
[1757068266519,0.03200668,206.2,206.16,9.74136265]
[1757068266715,0.03200668,206.2,206.17,7.42]
[1757068266916,0.03200668,206.2,206.16,9.74136265]
[1757068267115,0.03200668,206.2,206.17,7.42]
[1757068267317,0.03200668,206.2,206.16,5.37626265]
[1757068267821,0.03200668,206.2,206.17,7.42]
[1757068268717,0.03200668,206.2,206.16,5.37626265]
[1757068268918,0.03200668,206.2,206.17,7.42]
[1757068269122,0.03200668,206.2,206.16,5.37626265]
[1757068269322,0.03200668,206.2,206.17,7.42]
[1757068269718,0.03200668,206.2,206.16,4.05115181]
[1757068270614,0.03200668,206.2,206.17,7.42]
[1757068270819,0.03200668,206.2,206.16,8.41625181]
[1757068271419,0.03200668,206.2,206.17,7.42]
[1757068272026,0.03200668,206.2,206.16,8.41625181]
[1757068272221,0.03200668,206.2,206.17,7.42]
[1757068272419,0.03200668,206.2,206.16,8.41625181]